bitfinex-derivatives/quotes_BTCF0:USTF0_20250809
["timestamp","ask_amount","ask_price","bid_price","bid_amount"]
[1754734522637,0.01858128,117770.0,117760.0,2.05625293]
[1754734522844,0.0469735,117790.0,117780.0,0.0855511]
[1754734523145,0.0187435,117790.0,117780.0,1.69539843]
[1754734524346,0.0207435,117790.0,117780.0,1.69539843]
[1754734524947,0.0247435,117790.0,117780.0,1.69539843]
[1754734525848,0.0207435,117790.0,117780.0,1.69539843]
[1754734526441,0.0187435,117790.0,117780.0,1.69539843]
[1754734526755,0.02803,117810.0,117800.0,0.0860667]
[1754734527044,0.09275307,117830.0,117820.0,0.0860523]
[1754734527247,0.04391307,117830.0,117820.0,1.69497963]
[1754734528038,0.12876817,117830.0,117820.0,0.4456623]
[1754734528238,0.0848623,117820.0,117810.0,0.1709187]
[1754734528443,0.1586323,117820.0,117810.0,1.0163187]
[1754734528844,0.1586323,117820.0,117810.0,0.9314535]
[1754734529046,0.1586323,117820.0,117810.0,0.9316535]
[1754734529353,0.02893,117820.0,117810.0,1.69434083]
[1754734530447,0.03093,117820.0,117810.0,1.2924535]
[1754734530642,0.03093,117820.0,117810.0,1.69434083]
[1754734531042,0.03093,117820.0,117810.0,1.2924535]
[1754734531244,0.03093,117820.0,117810.0,1.69434083]
[1754734531542,0.006,117820.0,117810.0,1.69434083]
[1754734532450,0.00225359,117820.0,117810.0,1.69434083]
[1754734532953,0.00225359,117820.0,117810.0,1.86410083]
[1754734533451,0.04388387,117850.0,117840.0,0.0848478]
[1754734533645,0.04388387,117850.0,117840.0,1.2902478]
[1754734533849,0.17756447,117850.0,117840.0,0.9288078]
[1754734534050,0.17756447,117850.0,117840.0,0.0848478]
[1754734534452,0.1586178,117840.0,117830.0,0.62530691]
[1754734534652,0.1586178,117840.0,117830.0,1.46886691]
[1754734535543,0.1586178,117840.0,117830.0,1.47186691]
[1754734535751,0.1420078,117840.0,117830.0,1.47186691]
[1754734535953,0.1420078,117840.0,117830.0,1.87375424]
[1754734536254,0.1420078,117840.0,117830.0,1.87371424]
[1754734536756,0.1599178,117840.0,117830.0,1.47182691]
[1754734536951,0.1599178,117840.0,117830.0,1.47482691]
[1754734539466,0.1097778,117840.0,117830.0,1.49003937]
[1754734540152,0.1097778,117840.0,117830.0,1.8919267]
[1754734540552,0.04333387,117850.0,117840.0,0.0848479]
[1754734540752,0.4700171,117860.0,117840.0,1.01722643]
[1754734540952,0.1092135,117860.0,117850.0,0.9261207]
[1754734541357,0.1092135,117860.0,117850.0,1.2869207]
[1754734541549,0.1092135,117860.0,117850.0,0.9261207]
[1754734541753,0.1615135,117860.0,117850.0,0.9261207]
[1754734542161,0.1615135,117860.0,117850.0,0.9271207]
[1754734542560,0.1615135,117860.0,117850.0,1.2879207]
[1754734542762,0.1092135,117860.0,117850.0,1.2879207]
[1754734542952,0.2812709,117870.0,117850.0,1.85948483]
[1754734543162,0.2812709,117870.0,117860.0,0.4456335]
[1754734543662,0.02678,117870.0,117860.0,0.4456335]
[1754734543863,0.02678,117870.0,117860.0,0.84752083]
[1754734544161,0.02678,117870.0,117860.0,0.4456335]
[1754734544366,0.02778,117870.0,117860.0,0.4456335]
[1754734544861,0.1126063,117870.0,117860.0,0.4456335]
[1754734545456,0.1469963,117870.0,117860.0,0.4456335]
[1754734545661,0.1915063,117870.0,117860.0,1.2856735]
[1754734546267,0.2135463,117870.0,117860.0,1.2856735]
[1754734546770,0.61543363,117870.0,117860.0,0.4456335]
[1754734546965,0.2135463,117870.0,117860.0,1.2856735]
[1754734547271,0.61543363,117870.0,117860.0,0.4456335]
[1754734547474,0.2135463,117870.0,117860.0,0.4456335]
[1754734548168,0.2145463,117870.0,117860.0,0.4456335]
[1754734548568,0.1068734,117860.0,117850.0,1.0945575]
[1754734548772,0.2101534,117860.0,117850.0,1.4553575]
[1754734549170,0.2101534,117860.0,117850.0,1.4552775]
[1754734550380,0.2101534,117860.0,117850.0,1.0106368]
[1754734550877,0.61204073,117860.0,117850.0,0.001]
[1754734551084,0.61204073,117860.0,117850.0,0.9258006]
[1754734551375,0.2101534,117860.0,117850.0,0.9258006]
[1754734551977,0.2101534,117860.0,117850.0,1.2866006]
[1754734552881,0.1578534,117860.0,117850.0,1.2866006]
[1754734553382,0.1578534,117860.0,117850.0,0.9258006]
[1754734553584,0.2101534,117860.0,117850.0,0.9258006]
[1754734554981,0.2101534,117860.0,117850.0,1.2866006]
[1754734555485,0.1922434,117860.0,117850.0,1.2866006]
[1754734555783,0.1578534,117860.0,117850.0,1.2866006]
[1754734556985,0.2101534,117860.0,117850.0,1.2866006]
[1754734557185,0.2101534,117860.0,117850.0,0.9256806]
[1754734558289,0.2101534,117860.0,117850.0,1.2864806]
[1754734558474,0.1922434,117860.0,117850.0,1.2864806]
[1754734558679,0.1358134,117860.0,117850.0,1.2864806]
[1754734558879,0.1092134,117860.0,117850.0,1.2864806]
[1754734559482,0.1092134,117860.0,117850.0,1.68836793]
[1754734559787,0.1092134,117860.0,117850.0,0.4466406]
[1754734559988,0.363702,117870.0,117850.0,1.4561171]
[1754734560190,0.363702,117870.0,117860.0,0.0848334]
[1754734560776,0.416002,117870.0,117860.0,0.0848334]
[1754734561182,0.417002,117870.0,117860.0,0.0848334]
[1754734561382,0.43667512,117870.0,117860.0,0.0848334]
[1754734561784,0.35184262,117870.0,117860.0,0.0848334]
[1754734562584,0.04505312,117870.0,117860.0,0.0848334]
[1754734562786,0.002,117870.0,117860.0,0.84752073]
[1754734565189,0.002,117870.0,117860.0,0.91492281]
[1754734567884,0.02637,117870.0,117860.0,1.35259548]
[1754734568091,0.02637,117870.0,117860.0,1.75448281]
[1754734568483,0.1111962,117870.0,117860.0,1.75448281]
[1754734568683,0.02637,117870.0,117860.0,1.75448281]
[1754734568879,0.02637,117870.0,117860.0,1.35255548]
[1754734569086,0.2108562,117870.0,117860.0,1.35251548]
[1754734570193,0.12603,117870.0,117860.0,1.35251548]
[1754734570397,0.2108562,117870.0,117860.0,1.35251548]
[1754734570698,0.2108562,117870.0,117860.0,1.75440281]
[1754734571194,0.12603,117870.0,117860.0,1.75440281]
[1754734571591,0.10847,117870.0,117860.0,1.75440281]
[1754734571888,0.03781,117870.0,117860.0,1.75440281]
[1754734572087,0.002,117870.0,117860.0,1.75440281]
[1754734572279,0.02637,117870.0,117860.0,1.75440281]
[1754734572488,0.002,117870.0,117860.0,1.75440281]
[1754734573387,5.078e-05,117890.0,117880.0,0.084819]
[1754734573587,5.078e-05,117890.0,117880.0,1.703974]
[1754734573789,5.078e-05,117890.0,117880.0,0.864654]
[1754734573987,0.02442078,117890.0,117880.0,1.703974]
[1754734574188,5.078e-05,117890.0,117880.0,1.66288667]
[1754734574496,0.00405078,117890.0,117880.0,2.064774]
[1754734575284,0.00405078,117890.0,117880.0,2.064734]
[1754734575790,0.02842078,117890.0,117880.0,1.225454]
[1754734575989,0.02842078,117890.0,117880.0,0.82356667]
[1754734576184,0.14493268,117890.0,117880.0,1.225454]
[1754734576387,0.12808078,117890.0,117880.0,2.064614]
[1754734576592,0.12508078,117890.0,117880.0,2.064614]
[1754734576793,0.21089268,117890.0,117880.0,2.064614]
[1754734577292,0.21089268,117890.0,117880.0,1.66272667]
[1754734577589,0.21089268,117890.0,117880.0,1.30192667]
[1754734577795,0.21089268,117890.0,117880.0,1.703814]
[1754734578596,0.21089268,117890.0,117880.0,1.30192667]
[1754734579193,0.61278001,117890.0,117880.0,0.01714767]
[1754734579388,0.61278001,117890.0,117880.0,0.85618767]
[1754734579590,0.21089268,117890.0,117880.0,0.85618767]
[1754734579991,0.21089268,117890.0,117880.0,0.94100677]
[1754734580193,0.21089268,117890.0,117880.0,1.3428941]
[1754734580386,0.02642078,117890.0,117880.0,1.3428941]
[1754734580590,0.00205078,117890.0,117880.0,1.7036941]
[1754734581390,0.12879258,117890.0,117880.0,1.7036541]
[1754734581592,0.16049258,117890.0,117880.0,1.7036541]
[1754734581793,0.16049258,117890.0,117880.0,1.30176677]
[1754734582099,0.21089258,117890.0,117880.0,1.30176677]
[1754734582400,0.21089258,117890.0,117880.0,1.2846191]
[1754734582595,0.02642078,117890.0,117880.0,1.68650643]
[1754734582898,0.00205078,117890.0,117880.0,1.68650643]
[1754734583301,0.00105078,117890.0,117880.0,1.2846191]
[1754734583501,0.00105078,117890.0,117880.0,1.68650643]
[1754734584000,0.00105078,117890.0,117880.0,1.68850643]
[1754734585190,0.00105078,117890.0,117880.0,0.84950643]
[1754734585691,0.00105078,117890.0,117880.0,2.18834643]
[1754734585890,0.02542078,117890.0,117880.0,2.18834643]
[1754734586299,5.078e-05,117890.0,117880.0,2.18934643]
[1754734587201,5.078e-05,117890.0,117880.0,2.18834643]
[1754734587400,5.078e-05,117890.0,117880.0,2.19234643]
[1754734588204,0.02442078,117890.0,117880.0,2.19226643]
[1754734588596,0.02442078,117890.0,117880.0,1.69226643]
[1754734589197,0.02442078,117890.0,117880.0,1.2902991]
[1754734589395,0.02442078,117890.0,117880.0,1.69218643]
[1754734589601,0.05612078,117890.0,117880.0,1.69218643]
[1754734590297,0.20889278,117890.0,117880.0,0.85350643]
[1754734590501,0.20889278,117890.0,117880.0,1.69210643]
[1754734590900,0.12408078,117890.0,117880.0,1.2902191]
[1754734591198,0.20889278,117890.0,117880.0,1.69210643]
[1754734591397,0.05247078,117890.0,117880.0,1.69210643]
[1754734591598,0.13728278,117890.0,117880.0,1.2902191]
[1754734591797,0.20889278,117890.0,117880.0,1.2902191]
[1754734592212,0.20889278,117890.0,117880.0,1.69210643]
[1754734592506,0.12408078,117890.0,117880.0,1.69210643]
[1754734592801,5.078e-05,117890.0,117880.0,1.69210643]
[1754734592997,5.078e-05,117890.0,117880.0,1.69202643]
[1754734595905,5.078e-05,117890.0,117880.0,2.19202643]
[1754734596810,5.078e-05,117890.0,117880.0,2.26795355]
[1754734598803,5.078e-05,117890.0,117880.0,1.42943355]
[1754734599002,0.02480078,117890.0,117880.0,2.19190643]
[1754734599407,0.02480078,117890.0,117880.0,1.35350643]
[1754734599608,0.02480078,117890.0,117880.0,1.69190643]
[1754734599807,5.078e-05,117890.0,117880.0,1.69190643]
[1754734601401,5.078e-05,117890.0,117880.0,1.76783355]
[1754734601707,5.078e-05,117890.0,117880.0,2.26783355]
[1754734602201,5.078e-05,117890.0,117880.0,1.42943355]
[1754734602508,5.078e-05,117890.0,117880.0,2.26775355]
[1754734603106,0.4456838,117930.0,117920.0,0.0847903]
[1754734603107,0.01167922,117930.0,117920.0,0.0847903]
[1754734603301,0.01167922,117930.0,117910.0,0.2543799]
[1754734603302,0.1824403,117920.0,117910.0,1.4912937]
[1754734603497,0.07051,117930.0,117920.0,0.01023]
[1754734603698,0.09765,117930.0,117920.0,0.4834203]
[1754734603898,0.09765,117930.0,117920.0,0.4964903]
[1754734604108,0.09765,117930.0,117920.0,0.4834203]
[1754734604307,0.1824331,117930.0,117920.0,0.4834203]
[1754734604499,0.1824331,117930.0,117920.0,0.88530763]
[1754734604699,0.1824331,117930.0,117920.0,0.4834203]
[1754734605006,0.1824331,117930.0,117910.0,1.96308128]
[1754734605007,0.0847903,117920.0,117910.0,0.93289885]
[1754734605204,0.05189,117930.0,117920.0,0.2819602]
[1754734605400,0.2071831,117930.0,117920.0,0.3608]
[1754734605600,0.2071903,117920.0,117910.0,1.49093152]
[1754734606695,0.1224,117920.0,117910.0,1.50400152]
[1754734606904,0.10596,117920.0,117910.0,1.50400152]
[1754734607203,0.02475,117920.0,117910.0,1.86480152]
[1754734608001,0.02475,117920.0,117910.0,2.26668885]
[1754734608204,0.07367,117930.0,117920.0,0.1123904]
[1754734608411,0.05723,117930.0,117920.0,0.89837773]
[1754734608611,0.05723,117930.0,117920.0,0.4964904]
[1754734608808,0.05723,117930.0,117920.0,0.89837773]
[1754734609111,0.02475,117930.0,117920.0,0.89837773]
[1754734609315,0.05723,117930.0,117920.0,0.4964904]
[1754734611108,0.05823,117930.0,117920.0,0.4964904]
[1754734611407,0.05823,117930.0,117920.0,0.56551988]
[1754734611408,0.02575,117930.0,117920.0,0.56551988]
[1754734611606,0.02575,117930.0,117920.0,0.96740721]
[1754734612106,0.001,117930.0,117920.0,0.96740721]
[1754734612605,0.02575,117930.0,117920.0,0.96740721]
[1754734613409,0.02575,117930.0,117920.0,0.56551988]
[1754734613613,0.02575,117930.0,117920.0,0.96740721]
[1754734614611,0.001,117930.0,117920.0,0.96740721]
[1754734614810,0.02575,117930.0,117920.0,0.96740721]
[1754734615011,0.02575,117930.0,117920.0,0.56551988]
[1754734615209,0.1234,117930.0,117920.0,0.56551988]
[1754734615602,0.2081832,117930.0,117920.0,0.56551988]
[1754734616108,0.1234,117930.0,117920.0,0.56551988]
[1754734617003,0.07448,117930.0,117920.0,0.56551988]
[1754734617206,0.2081832,117930.0,117920.0,0.55244988]
[1754734617412,0.2081832,117930.0,117920.0,0.56551988]
[1754734617811,0.02575,117930.0,117920.0,0.96740721]
[1754734618009,0.001,117930.0,117920.0,0.96740721]
[1754734618213,0.001,117930.0,117920.0,0.56551988]
[1754734618514,0.001,117930.0,117920.0,0.96740721]
[1754734619017,0.02575,117930.0,117920.0,0.96740721]
[1754734619717,0.02575,117930.0,117920.0,0.56551988]
[1754734620219,0.02575,117930.0,117920.0,0.96740721]
[1754734620704,0.02575,117930.0,117920.0,0.90738266]
[1754734620911,0.02575,117930.0,117920.0,0.56551988]
[1754734621215,0.55004598,117930.0,117920.0,0.55244988]
[1754734621410,0.2081832,117930.0,117920.0,1.39116988]
[1754734621615,0.1234,117930.0,117920.0,1.39116988]
[1754734621811,0.2081832,117930.0,117920.0,1.39116988]
[1754734622016,0.1234,117930.0,117920.0,1.39116988]
[1754734622217,0.55004598,117930.0,117920.0,1.39116988]
[1754734622516,0.2081832,117930.0,117920.0,1.73303266]
[1754734622719,0.2081832,117930.0,117920.0,1.74610266]
[1754734623019,0.2081832,117930.0,117920.0,1.40423988]
[1754734623718,0.1234,117930.0,117920.0,1.40423988]
[1754734623915,0.1234,117930.0,117920.0,1.74610266]
[1754734624308,0.2081832,117930.0,117920.0,1.74610266]
[1754734625315,0.1234,117930.0,117920.0,1.74610266]
[1754734626211,0.02575,117930.0,117920.0,1.74610266]
[1754734626410,0.1234,117930.0,117920.0,1.74610266]
[1754734627819,0.2081832,117930.0,117920.0,1.74610266]
[1754734628711,0.001,117930.0,117920.0,1.74610266]
[1754734629019,0.0258,117930.0,117920.0,1.74610266]
[1754734630215,0.0258,117930.0,117920.0,1.40423988]
[1754734630421,0.0258,117930.0,117920.0,1.74610266]
[1754734630620,0.0258,117930.0,117920.0,1.40423988]
[1754734630825,0.05836,117930.0,117920.0,1.74610266]
[1754734631316,0.1105831,117930.0,117920.0,1.74610266]
[1754734631717,0.1431431,117930.0,117920.0,1.74610266]
[1754734632318,0.05836,117930.0,117920.0,1.74610266]
[1754734632519,0.0258,117930.0,117920.0,1.74610266]
[1754734633725,0.0258,117930.0,117920.0,1.88690266]
[1754734634022,0.0258,117930.0,117920.0,1.74610266]
[1754734635216,0.1105831,117930.0,117920.0,1.74610266]
[1754734635418,0.0258,117930.0,117920.0,1.74610266]
[1754734636725,0.1105831,117930.0,117920.0,1.74610266]
[1754734636928,0.0258,117930.0,117920.0,1.74610266]
[1754734637522,0.001,117930.0,117920.0,1.74610266]
[1754734638218,0.3019577,117940.0,117920.0,1.91567866]
[1754734638416,0.3617577,117940.0,117930.0,0.1128532]
[1754734638616,0.3785377,117940.0,117930.0,0.1362032]
[1754734639332,0.3795377,117940.0,117930.0,0.1362032]
[1754734641023,0.3795377,117940.0,117930.0,0.1231332]
[1754734641328,0.72140048,117940.0,117930.0,0.9608132]
[1754734641831,0.3795377,117940.0,117930.0,0.9608132]
[1754734642018,0.72140048,117940.0,117930.0,0.9608132]
[1754734642223,0.3795377,117940.0,117930.0,0.9608132]
[1754734642419,0.72140048,117940.0,117930.0,0.9738832]
[1754734642723,0.3795377,117940.0,117930.0,0.9738832]
[1754734642930,0.3795377,117940.0,117930.0,1.30267598]
[1754734643130,0.72140048,117940.0,117930.0,0.9608132]
[1754734643632,0.3795377,117940.0,117930.0,0.9738832]
[1754734644030,0.3795377,117940.0,117930.0,1.03442083]
[1754734646936,0.72140048,117940.0,117930.0,0.9608132]
[1754734647737,0.72140048,117940.0,117930.0,1.02135325]
[1754734648127,0.3795377,117940.0,117930.0,1.02135325]
[1754734648331,0.72140048,117940.0,117930.0,1.02135325]
[1754734648833,1.08220048,117940.0,117930.0,0.98284325]
[1754734650037,1.08220048,117940.0,117930.0,0.99312325]
[1754734650626,1.25178448,117940.0,117930.0,0.06054005]
[1754734652738,0.1348432,117930.0,117920.0,1.29202026]
[1754734652938,0.91164598,117930.0,117920.0,1.30230026]
[1754734653837,0.91164598,117930.0,117920.0,1.12235946]
[1754734654041,0.91164598,117930.0,117920.0,1.12236426]
[1754734654435,0.5697832,117930.0,117920.0,1.14975067]
[1754734654734,0.2089832,117930.0,117920.0,1.14975067]
[1754734654939,0.2089832,117930.0,117920.0,1.14972366]
[1754734655133,0.55084598,117930.0,117920.0,1.16064725]
[1754734655330,0.5697832,117930.0,117920.0,1.16064725]
[1754734656536,0.5697832,117930.0,117920.0,1.07585685]
[1754734656732,0.5697832,117930.0,117920.0,1.07585581]
[1754734657045,0.91164598,117930.0,117920.0,0.32336621]
[1754734657841,0.91164598,117930.0,117920.0,0.23857581]
[1754734658043,0.91164598,117930.0,117920.0,0.20022581]
[1754734658842,0.91164598,117930.0,117920.0,0.13971277]
[1754734659442,0.91164598,117930.0,117920.0,0.07068329]
[1754734661342,1.74868598,117930.0,117920.0,0.07068329]
[1754734661542,0.2086604,117920.0,117910.0,0.00986405]
[1754734661747,0.1349175,117910.0,117900.0,1.10169244]
[1754734661944,0.2086675,117910.0,117900.0,1.02655774]
[1754734662245,0.2086675,117910.0,117900.0,0.14439304]
[1754734662542,0.1589575,117910.0,117900.0,1.42710361]
[1754734662738,0.1589575,117910.0,117900.0,1.44017361]
[1754734662938,0.1360775,117910.0,117900.0,1.44217361]
[1754734663139,0.1360775,117910.0,117900.0,1.10031083]
[1754734663344,0.1360775,117910.0,117900.0,1.44317361]
[1754734663546,0.6511649,117920.0,117910.0,0.10662]
[1754734663547,0.1278332,117920.0,117910.0,0.10662]
[1754734663746,0.1278332,117920.0,117910.0,0.53328028]
[1754734663948,0.2276632,117920.0,117910.0,0.53328028]
[1754734664749,0.2276632,117920.0,117910.0,0.53428028]
[1754734665350,0.1278332,117920.0,117910.0,0.89508028]
[1754734666344,0.1605632,117920.0,117910.0,0.89508028]
[1754734667540,0.1605632,117920.0,117910.0,0.95559332]
[1754734667743,0.1878032,117920.0,117910.0,0.95559332]
[1754734667948,0.2047832,117920.0,117910.0,0.95559332]
[1754734668153,0.2047832,117920.0,117910.0,0.89508028]
[1754734669447,0.2047832,117920.0,117910.0,0.5532175]
[1754734669755,0.2276632,117920.0,117910.0,0.89508028]
[1754734671349,0.2276632,117920.0,117910.0,1.3898175]
[1754734672555,0.2276632,117920.0,117910.0,1.73168028]
[1754734672754,0.1278332,117920.0,117910.0,1.73168028]
[1754734673851,0.0190028,117920.0,117910.0,1.73168028]
[1754734674462,0.1278334,117920.0,117910.0,1.73168028]
[1754734674755,0.2276634,117920.0,117910.0,1.3898175]
[1754734674948,0.2276634,117920.0,117910.0,1.73168028]
[1754734675346,0.2276634,117920.0,117910.0,1.45335462]
[1754734675551,0.2276634,117920.0,117910.0,0.61707462]
[1754734675758,0.2276634,117920.0,117910.0,0.61607462]
[1754734676057,0.2276634,117920.0,117910.0,1.45431462]
[1754734676251,0.56952618,117920.0,117910.0,0.47425712]
[1754734676457,0.56952618,117920.0,117910.0,0.03753]
[1754734676660,0.56952618,117920.0,117910.0,0.9585278]
[1754734676859,0.56952618,117920.0,117910.0,0.09655]
[1754734677057,0.56952618,117920.0,117910.0,0.93275]
[1754734677560,0.56952618,117920.0,117910.0,1.0175079]
[1754734678255,0.56952618,117920.0,117910.0,0.1813479]
[1754734678451,0.56952618,117920.0,117910.0,1.0174279]
[1754734679661,0.93032618,117920.0,117910.0,0.003]
[1754734682058,0.2086751,117900.0,117890.0,1.099048]
[1754734682358,0.2086751,117900.0,117890.0,0.263168]
[1754734682546,0.2086823,117890.0,117880.0,0.08388]
[1754734682747,0.2086895,117880.0,117870.0,1.5446617]
[1754734682953,0.2086895,117880.0,117870.0,1.55441123]
[1754734683361,0.2086895,117880.0,117870.0,1.56748123]
[1754734684060,0.2086895,117880.0,117870.0,0.89078511]
[1754734684263,0.2086895,117880.0,117870.0,0.54892233]
[1754734684456,0.2086895,117880.0,117870.0,1.38468233]
[1754734686058,0.2086895,117880.0,117870.0,1.39775233]
[1754734686364,0.55055228,117880.0,117870.0,0.94205953]
[1754734686563,0.55055228,117880.0,117870.0,0.10629953]
[1754734686861,0.2086895,117880.0,117870.0,0.19112613]
[1754734687058,0.5694895,117880.0,117870.0,0.01274953]
[1754734687260,0.55055228,117880.0,117870.0,0.84838953]
[1754734687762,1.08102428,117880.0,117870.0,0.003]
[1754734688063,0.2086895,117880.0,117870.0,0.18918349]
[1754734688656,0.2086895,117880.0,117870.0,0.18718349]
[1754734689559,0.2086895,117880.0,117870.0,0.52904627]
[1754734689858,0.32471006,117890.0,117880.0,0.1767494]
[1754734690163,0.39783006,117890.0,117880.0,1.36720218]
[1754734690360,0.39783006,117890.0,117880.0,1.35413218]
[1754734690559,0.39783006,117890.0,117880.0,1.36720218]
[1754734692463,0.39783006,117890.0,117880.0,1.0253394]
[1754734692660,0.39783006,117890.0,117880.0,1.36720218]
[1754734694059,0.39783006,117890.0,117880.0,1.0253394]
[1754734694266,0.39783006,117890.0,117880.0,1.36720218]
[1754734695067,0.32471006,117890.0,117880.0,1.36720218]
[1754734695371,0.39783006,117890.0,117880.0,1.35413218]
[1754734695563,0.39783006,117890.0,117880.0,1.36720218]
[1754734695868,0.39783006,117890.0,117880.0,1.0253394]
[1754734696163,0.39783006,117890.0,117880.0,0.09193]
[1754734697363,0.39783006,117890.0,117880.0,0.1767493]
[1754734697567,0.39783006,117890.0,117880.0,0.09193]
[1754734698062,0.73969284,117890.0,117880.0,0.09193]
[1754734698368,0.2090593,117880.0,117870.0,1.38192349]
[1754734698670,0.2090593,117880.0,117870.0,1.02112349]
[1754734699168,0.2090593,117880.0,117870.0,1.02116349]
[1754734699363,0.2090593,117880.0,117870.0,1.02112349]
[1754734699571,0.2090593,117880.0,117870.0,0.93629699]
[1754734699770,0.2090593,117880.0,117870.0,0.93829699]
[1754734700263,0.2090593,117880.0,117870.0,0.10325699]
[1754734700464,0.55092208,117880.0,117870.0,0.002]
[1754734701273,0.91172208,117880.0,117870.0,0.003]
[1754734701974,0.2090593,117880.0,117870.0,0.05186]
[1754734702163,0.2090593,117880.0,117870.0,0.09483]
[1754734702766,0.5698593,117880.0,117870.0,0.03663]
[1754734703073,0.2090593,117880.0,117870.0,0.03663]
[1754734703269,0.5698593,117880.0,117870.0,0.03663]
[1754734703567,0.91172208,117880.0,117870.0,0.003]
[1754734703964,0.93042241,117880.0,117870.0,0.003]
[1754734706365,0.22775963,117880.0,117870.0,0.52151938]
[1754734706571,0.22775963,117880.0,117870.0,0.53458938]
[1754734706862,0.22775963,117880.0,117870.0,0.1927266]
[1754734707268,0.22775963,117880.0,117870.0,0.53458938]
[1754734707470,0.22775963,117880.0,117870.0,0.1927266]
[1754734707775,0.22775963,117880.0,117870.0,0.53458938]
[1754734709477,0.22775963,117880.0,117870.0,0.1927266]
[1754734710280,0.22775963,117880.0,117870.0,0.1796566]
[1754734710472,0.22775963,117880.0,117870.0,0.5535266]
[1754734710679,0.22775963,117880.0,117870.0,0.89538938]
[1754734711984,0.22775963,117880.0,117870.0,0.53458938]
[1754734713675,0.22775963,117880.0,117870.0,0.1927266]
[1754734713979,0.22775963,117880.0,117870.0,0.53458938]
[1754734714573,0.22775963,117880.0,117870.0,0.89538938]
[1754734714769,0.22775963,117880.0,117870.0,0.53458938]
[1754734715182,0.17726963,117880.0,117870.0,1.72962938]
[1754734715380,0.15463963,117880.0,117870.0,1.72962938]
[1754734715581,0.15463963,117880.0,117870.0,1.3877666]
[1754734715786,0.15463963,117880.0,117870.0,1.72962938]
[1754734716369,0.15463963,117880.0,117870.0,1.3877666]
[1754734716569,0.12773963,117880.0,117870.0,1.72962938]
[1754734716981,0.12773963,117880.0,117870.0,1.3877666]
[1754734717182,0.22581963,117880.0,117870.0,1.72962938]
[1754734718483,0.22581963,117880.0,117870.0,1.3877666]
[1754734718683,0.22581963,117880.0,117870.0,1.72962938]
[1754734720184,0.22581963,117880.0,117870.0,1.0269666]
[1754734720384,0.22581963,117880.0,117870.0,1.36882938]
[1754734720581,0.56768241,117880.0,117870.0,0.02448]
[1754734720787,0.56768241,117880.0,117870.0,0.06677]
[1754734721286,0.56768241,117880.0,117870.0,0.05793]
[1754734722080,0.92848241,117880.0,117870.0,0.05793]
[1754734722488,0.92848241,117880.0,117870.0,0.06677]
[1754734722987,0.58661963,117880.0,117870.0,0.093]
[1754734723181,0.92848241,117880.0,117870.0,0.093]
[1754734723692,0.58661963,117880.0,117870.0,0.093]
[1754734723884,0.92848241,117880.0,117870.0,0.093]
[1754734724288,0.58661963,117880.0,117870.0,0.093]
[1754734724488,0.92848241,117880.0,117870.0,0.093]
[1754734724686,0.58661963,117880.0,117870.0,0.093]
[1754734724892,0.56768241,117880.0,117870.0,0.093]
[1754734725793,0.92848241,117880.0,117870.0,0.003]
[1754734727683,1.76188241,117880.0,117870.0,0.003]
[1754734731202,1.42001963,117880.0,117870.0,0.003]
[1754734731494,1.05921963,117880.0,117870.0,0.09277]
[1754734731685,1.05921963,117880.0,117870.0,0.03645]
[1754734731892,1.40108241,117880.0,117870.0,0.003]
[1754734732285,1.05921963,117880.0,117870.0,0.003]
[1754734732596,1.76188241,117880.0,117870.0,0.003]
[1754734735699,1.42001963,117880.0,117870.0,0.003]
[1754734735998,0.22581963,117880.0,117870.0,0.003]
[1754734736298,0.22581963,117880.0,117870.0,0.03645]
[1754734736498,0.22605563,117880.0,117870.0,0.03645]
[1754734737598,0.56791841,117880.0,117870.0,0.003]
[1754734739092,0.22605563,117880.0,117870.0,0.03645]
[1754734739296,0.22605563,117880.0,117870.0,0.06654]
[1754734739894,0.22605563,117880.0,117870.0,0.0577]
[1754734739895,0.54898208,117880.0,117870.0,0.0577]
[1754734740500,0.56796859,117880.0,117870.0,0.0577]
[1754734740901,0.56796859,117880.0,117870.0,0.03645]
[1754734741103,0.56796859,117880.0,117870.0,0.003]
[1754734743004,0.56796859,117880.0,117870.0,0.03645]
[1754734743205,0.56796859,117880.0,117870.0,0.003]
[1754734743407,0.56796859,117880.0,117870.0,0.03645]
[1754734744206,0.56796859,117880.0,117870.0,0.003]
[1754734744907,0.92876859,117880.0,117870.0,0.003]
[1754734745810,0.58690581,117880.0,117870.0,0.003]
[1754734745993,0.92876859,117880.0,117870.0,0.003]
[1754734750501,0.2085066,117870.0,117860.0,0.00956698]
[1754734750703,0.2085138,117860.0,117850.0,0.51508448]
[1754734750907,0.2085138,117860.0,117850.0,0.85694726]
[1754734751208,0.2085138,117860.0,117850.0,0.95695842]
[1754734751504,0.2085138,117860.0,117850.0,0.53025504]
[1754734751910,0.2085138,117860.0,117850.0,0.53425504]
[1754734752703,0.2085138,117860.0,117850.0,0.83606782]
[1754734752905,0.93033823,117860.0,117850.0,0.09216828]
[1754734753109,0.93033823,117860.0,117850.0,0.01624116]
[1754734753309,0.58847545,117860.0,117850.0,0.01624116]
[1754734753509,0.93033823,117860.0,117850.0,0.01624116]
[1754734753805,0.93033823,117860.0,117810.0,0.72145961]
[1754734753806,0.1341827,117820.0,117810.0,0.72145961]
[1754734754108,0.55040548,117820.0,117810.0,0.40852]
[1754734754413,0.22751507,117820.0,117810.0,0.1992899]
[1754734754710,0.22751507,117820.0,117810.0,0.26697858]
[1754734754910,0.22751507,117820.0,117810.0,0.26897858]
[1754734755112,0.22751507,117820.0,117810.0,0.62024902]
[1754734755512,0.22751507,117820.0,117810.0,0.55256034]
[1754734755709,0.22751507,117820.0,117810.0,0.21269756]
[1754734756116,0.22751507,117820.0,117810.0,0.12782766]
[1754734756310,0.22751507,117820.0,117810.0,0.21269746]
[1754734756706,0.22751507,117820.0,117810.0,0.57349746]
[1754734756913,0.22751507,117820.0,117810.0,0.14818746]
[1754734757120,0.22751507,117820.0,117810.0,0.09592766]
[1754734757316,0.22751507,117820.0,117810.0,0.54984746]
[1754734757521,0.22751507,117820.0,117810.0,0.57349746]
[1754734757830,0.22751507,117820.0,117810.0,0.21269746]
[1754734758124,0.56937785,117820.0,117810.0,0.21269746]
[1754734758926,0.56937785,117820.0,117810.0,0.12782766]
[1754734759229,0.22751507,117820.0,117810.0,0.48862766]
[1754734759526,0.22751507,117820.0,117810.0,0.12782766]
[1754734760129,0.22751507,117820.0,117810.0,0.21269736]
[1754734760331,0.22751507,117820.0,117810.0,0.08468766]
[1754734760523,0.56937785,117820.0,117810.0,0.01340766]
[1754734760827,0.56937785,117820.0,117810.0,0.10417766]
[1754734761015,0.56937785,117820.0,117810.0,0.09477]
[1754734761421,0.56937785,117820.0,117810.0,0.1796397]
[1754734762026,0.56937785,117820.0,117810.0,0.09477]
[1754734762323,0.56937785,117820.0,117810.0,0.004]
[1754734762524,0.56937785,117820.0,117810.0,0.1796397]
[1754734762830,0.56937785,117820.0,117810.0,0.2032897]